fUST/lending_fUST_20251028
["ID","MTS","AMOUNT","RATE_DAILY","PERIOD"]
[392546834,1761640249356,-500.0,0.00021917,2]
[392546835,1761640249369,-874.68,0.00021917,2]
[392546836,1761640249378,-793.55,0.00021917,2]
[392546837,1761640249389,-500.0,0.00021917,2]
[392546838,1761640249399,-500.0,0.00021917,2]
[392546839,1761640249408,-500.0,0.00021917,2]
[392546840,1761640249418,-1907.37,0.00021917,2]
[392546841,1761640249428,-500.0,0.00021917,2]
[392546842,1761640249438,-500.0,0.00021917,2]
[392546843,1761640249448,-967.89,0.00021917,2]
[392546844,1761640249458,-500.0,0.00021917,2]
[392546845,1761640249468,-500.0,0.00021917,2]
[392546846,1761640249477,-810.13,0.00021917,2]
[392546847,1761640249487,-500.0,0.00021917,2]
[392546848,1761640249496,-500.0,0.00021917,2]
[392546849,1761640249507,-500.0,0.00021917,2]
[392546850,1761640249519,-500.0,0.00021917,2]
[392546851,1761640249528,-500.0,0.00021917,2]
[392546852,1761640249538,-1070.89,0.00021917,2]
[392546853,1761640249548,-500.0,0.00021917,2]
[392546854,1761640249557,-500.0,0.00021917,2]
[392546855,1761640249567,-469.41473533,0.00021917,2]
[392546856,1761640249577,-500.0,0.00021917,2]
[392546857,1761640249586,-500.0,0.00021917,2]
[392546858,1761640249595,-500.0,0.00021917,2]
[392546859,1761640249605,-507.48,0.00021917,2]
[392546860,1761640249614,-778.54,0.00021917,2]
[392546861,1761640249624,-1150.54,0.00021917,2]
[392546862,1761640249633,-500.0,0.00021917,2]
[392546863,1761640249643,-537.81,0.00021917,2]
[392546864,1761640249652,-500.0,0.00021917,2]
[392546865,1761640249661,-500.0,0.00021917,2]
[392546866,1761640249670,-1522.88,0.00021917,2]
[392546867,1761640249682,-500.0,0.00021917,2]
[392546868,1761640249693,-585.08,0.00021917,2]
[392546869,1761640249703,-500.0,0.00021917,2]
[392546870,1761640249712,-625.69,0.00021917,2]
[392546871,1761640249722,-567.0666948,0.00021917,2]
[392546872,1761640249731,-600.66,0.00021917,2]
[392546873,1761640249740,-500.0,0.00021917,2]
[392546874,1761640249749,-500.0,0.00021917,2]
[392546875,1761640249758,-500.0,0.00021917,2]
[392546876,1761640249768,-501.1785941,0.00021917,2]
[392546877,1761640249777,-500.0,0.00021917,2]
[392546878,1761640249786,-500.0,0.00021917,2]
[392546879,1761640249796,-500.0,0.00021917,2]
[392546880,1761640249805,-922.08,0.00021917,2]
[392546881,1761640249814,-500.0,0.00021917,2]
[392546882,1761640249825,-500.0,0.00021917,2]
[392546883,1761640249835,-500.0,0.00021917,2]
[392546884,1761640249845,-976.8,0.00021917,2]
[392546885,1761640249857,-500.0,0.00021917,2]
[392546886,1761640249867,-826.91,0.00021917,2]
[392546887,1761640249878,-500.0,0.00021917,2]
[392546888,1761640249887,-500.0,0.00021917,2]
[392546889,1761640249897,-1138.43,0.00021917,2]
[392546890,1761640249907,-500.0,0.00021917,2]
[392546891,1761640249917,-500.0,0.00021917,2]
[392546892,1761640249927,-574.19,0.00021917,2]
[392546893,1761640249936,-500.0,0.00021917,2]
[392546894,1761640249947,-598.20345801,0.00021917,2]
[392546895,1761640249957,-704.76,0.00021917,2]
[392546896,1761640249970,-500.0,0.00021917,2]
[392546897,1761640249980,-793.66,0.00021917,2]
[392546898,1761640249990,-732.76,0.00021917,2]
[392546899,1761640249999,-500.0,0.00021917,2]
[392546900,1761640250010,-500.0,0.00021917,2]
[392546901,1761640250020,-603.51,0.00021917,2]
[392546902,1761640250029,-500.0,0.00021917,2]
[392546903,1761640250039,-500.0,0.00021917,2]
[392546904,1761640250050,-589.8,0.00021917,2]
[392546905,1761640250065,-1411.44,0.00021917,2]
[392546906,1761640250076,-978.03,0.00021917,2]
[392546907,1761640250085,-500.0,0.00021917,2]
[392546908,1761640250096,-501.57,0.00021917,2]
[392546909,1761640250107,-675.93,0.00021917,2]
[392546910,1761640250116,-500.0,0.00021917,2]
[392546911,1761640250126,-564.4,0.00021917,2]
[392546912,1761640250135,-500.0,0.00021917,2]
[392546913,1761640250144,-505.2,0.00021917,2]
[392546914,1761640250154,-1000.0,0.00021917,2]
[392546915,1761640250163,-1646.27,0.00021917,2]
[392546916,1761640250172,-785.37,0.00021917,2]
[392546917,1761640250182,-805.84,0.00021917,2]
[392546918,1761640250191,-550.30390284,0.00021917,2]
[392546919,1761640250202,-544.32,0.00021917,2]
[392546920,1761640250211,-500.0,0.00021917,2]
[392546921,1761640250220,-385.39691016,0.00021917,2]
[392546922,1761640250230,-500.0,0.00021917,2]
[392546923,1761640250239,-500.0,0.00021917,2]
[392546924,1761640250249,-500.0,0.00021917,2]
[392546925,1761640250258,-500.0,0.00021917,2]
[392546926,1761640250267,-1229.64,0.00021917,2]
[392546927,1761640250276,-500.0,0.00021917,2]
[392546928,1761640250289,-554.14,0.00021917,2]
[392546929,1761640250304,-698.5,0.00021917,2]
[392546930,1761640250314,-500.0,0.00021917,2]
[392546931,1761640250323,-500.0,0.00021917,2]
[392546932,1761640250333,-500.0,0.00021917,2]
[392546933,1761640250343,-500.0,0.00021917,2]
[392546934,1761640250353,-500.0,0.00021917,2]
[392546935,1761640250362,-1319.61,0.00021917,2]
[392546936,1761640250371,-1242.31,0.00021917,2]
[392546937,1761640250380,-500.0,0.00021917,2]
[392546938,1761640250389,-1180.75,0.00021917,2]
[392546939,1761640250398,-500.0,0.00021917,2]
[392546940,1761640250407,-500.0,0.00021917,2]
[392546941,1761640250416,-393.04491305,0.00021917,2]
[392546942,1761640250426,-500.0,0.00021917,2]
[392546943,1761640250436,-1777.35,0.00021917,2]
[392546944,1761640250445,-500.0,0.00021917,2]
[392546945,1761640250454,-500.0,0.00021917,2]
[392546946,1761640250464,-500.0,0.00021917,2]
[392546947,1761640250473,-500.0,0.00021917,2]
[392546948,1761640250483,-500.0,0.00021917,2]
[392546949,1761640250492,-500.0,0.00021917,2]
[392546950,1761640250502,-500.0,0.00021917,2]
[392546951,1761640250512,-500.0,0.00021917,2]
[392546952,1761640250521,-720.07,0.00021917,2]
[392546953,1761640250531,-500.0,0.00021917,2]
[392546954,1761640250540,-1303.55,0.00021917,2]
[392546955,1761640250549,-500.0,0.00021917,2]
[392546956,1761640250560,-500.0,0.00021917,2]
[392546957,1761640250570,-500.0,0.00021917,2]
[392546958,1761640250579,-585.31,0.00021917,2]
[392546959,1761640250590,-806.59,0.00021917,2]
[392546960,1761640250601,-500.0,0.00021917,2]
[392546961,1761640250612,-1112.45,0.00021917,2]
[392546962,1761640250622,-500.0,0.00021917,2]
[392546963,1761640250631,-500.0,0.00021917,2]
[392546964,1761640250640,-500.0,0.00021917,2]
[392546965,1761640250650,-500.0,0.00021917,2]
[392546966,1761640250659,-500.0,0.00021917,2]
[392546967,1761640250668,-500.0,0.00021917,2]
[392546968,1761640250678,-500.0,0.00021917,2]
[392546969,1761640250688,-500.0,0.00021917,2]
[392546970,1761640250697,-356.46067362,0.00021917,2]
[392546971,1761640250706,-500.0,0.00021917,2]
[392546972,1761640250715,-1400.6,0.00021917,2]
[392546973,1761640250725,-500.0,0.00021917,2]
[392546974,1761640250734,-500.0,0.00021917,2]
[392546975,1761640250743,-500.0,0.00021917,2]
[392546976,1761640250754,-500.0,0.00021917,2]
[392546977,1761640250764,-500.0,0.00021917,2]
[392546978,1761640250773,-500.0,0.00021917,2]
[392546979,1761640250783,-500.0,0.00021917,2]
[392546980,1761640250793,-500.0,0.00021917,2]
[392546981,1761640250805,-500.0,0.00021917,2]
[392546982,1761640250814,-500.0,0.00021917,2]
[392546983,1761640250824,-733.42,0.00021917,2]
[392546984,1761640250834,-1226.7,0.00021917,2]
[392546985,1761640250843,-423.77321326,0.00021917,2]
[392546986,1761640250853,-500.0,0.00021917,2]
[392546987,1761640250863,-500.0,0.00021917,2]
[392546988,1761640250873,-500.0,0.00021917,2]
[392546989,1761640250883,-1916.84,0.00021917,2]
[392546990,1761640250893,-539.58,0.00021917,2]
[392546991,1761640250903,-650.66,0.00021917,2]
[392546992,1761640250913,-3705.36,0.00021917,2]
[392546993,1761640250922,-500.0,0.00021917,2]
[392546994,1761640250931,-500.0,0.00021917,2]
[392546995,1761640250940,-500.0,0.00021917,2]
[392546996,1761640250949,-500.0,0.00021917,2]
[392546997,1761640250963,-1451.02,0.00021917,2]
[392546998,1761640250972,-1616.65,0.00021917,2]
[392546999,1761640250981,-500.0,0.00021917,2]
[392547000,1761640250991,-741.53,0.00021917,2]
[392547001,1761640251000,-1844.96,0.00021917,2]
[392547002,1761640251009,-1272.38,0.00021917,2]
[392547003,1761640251019,-500.0,0.00021917,2]
[392547004,1761640251028,-609.72,0.00021917,2]
[392547005,1761640251038,-500.0,0.00021917,2]
[392547006,1761640251047,-500.0,0.00021917,2]
[392547007,1761640251057,-500.0,0.00021917,2]
[392547008,1761640251067,-619.81,0.00021917,2]
[392547009,1761640251078,-3461.07,0.00021917,2]
[392547010,1761640251088,-1197.46,0.00021917,2]
[392547011,1761640251097,-500.0,0.00021917,2]
[392547012,1761640251107,-500.0,0.00021917,2]
[392547013,1761640251116,-500.0,0.00021917,2]
[392547014,1761640251126,-500.0,0.00021917,2]
[392547015,1761640251135,-426.62532577,0.00021917,2]
[392547016,1761640251145,-500.0,0.00021917,2]
[392547017,1761640251155,-500.0,0.00021917,2]
[392547018,1761640251167,-500.0,0.00021917,2]
[392547019,1761640251177,-725.56,0.00021917,2]
[392547020,1761640251186,-500.0,0.00021917,2]
[392547021,1761640251197,-500.0,0.00021917,2]
[392547022,1761640251211,-500.0,0.00021917,2]
[392547023,1761640251224,-1713.59,0.00021917,2]
[392547024,1761640251238,-500.0,0.00021917,2]
[392547025,1761640251251,-500.0,0.00021917,2]
[392547026,1761640251263,-671.88,0.00021917,2]
[392547027,1761640251276,-933.63,0.00021917,2]
[392547028,1761640251287,-500.0,0.00021917,2]
[392547029,1761640251299,-751.51,0.00021917,2]
[392547030,1761640251310,-500.0,0.00021917,2]
[392547031,1761640251322,-640.33,0.00021917,2]
[392547032,1761640251333,-500.0,0.00021917,2]
[392547033,1761640251345,-243.53741204,0.00021917,2]
[392547034,1761640251357,-7538.5,0.00021917,2]
[392547035,1761640251370,-228.45331509,0.00021917,2]
[392547036,1761640251383,-500.0,0.00021917,2]
[392547037,1761640251396,-500.0,0.00021917,2]
[392547038,1761640251408,-626.51,0.00021917,2]
[392547039,1761640251420,-500.0,0.00021917,2]
[392547040,1761640251432,-823.77,0.00021917,2]
[392547041,1761640251445,-500.0,0.00021917,2]
[392547042,1761640251457,-402.75397427,0.00021917,2]
[392547043,1761640251468,-500.0,0.00021917,2]
[392547044,1761640251479,-1252.03,0.00021917,2]
[392547045,1761640251491,-1745.51,0.00021917,2]
[392547046,1761640251501,-500.0,0.00021917,2]
[392547047,1761640251513,-500.0,0.00021917,2]
[392547048,1761640251524,-500.0,0.00021917,2]
[392547049,1761640251536,-951.53,0.00021917,2]
[392547050,1761640251548,-594.5,0.00021917,2]
[392547051,1761640251560,-861.57,0.00021917,2]
[392547052,1761640251571,-500.0,0.00021917,2]
[392547053,1761640251583,-621.87,0.00021917,2]
[392547054,1761640251594,-2477.74,0.00021917,2]
[392547055,1761640251604,-500.0,0.00021917,2]
[392547056,1761640251614,-225.2978146,0.00021917,2]
[392547057,1761640251625,-500.0,0.00021917,2]
[392547058,1761640251636,-1332.22,0.00021917,2]
[392547059,1761640251659,-500.0,0.00021917,2]
[392547060,1761640251671,-500.0,0.00021917,2]
[392547061,1761640251687,-556.32,0.00021917,2]
[392547062,1761640251701,-1491.95,0.00021917,2]
[392547063,1761640251714,-1862.87,0.00021917,2]
[392547064,1761640251728,-2096.95,0.00021917,2]
[392547065,1761640251742,-500.0,0.00021917,2]
[392547066,1761640251754,-965.65,0.00021917,2]
[392547067,1761640251769,-500.0,0.00021917,2]
[392547068,1761640251782,-665.18,0.00021917,2]
[392547069,1761640251796,-1078.94,0.00021917,2]
[392547070,1761640251809,-500.0,0.00021917,2]
[392547071,1761640251822,-500.0,0.00021917,2]
[392547072,1761640251834,-500.0,0.00021917,2]
[392547073,1761640251844,-500.0,0.00021917,2]
[392547074,1761640251855,-500.0,0.00021917,2]
[392547075,1761640251865,-1151.36,0.00021917,2]
[392547076,1761640251875,-1446.18,0.00021917,2]
[392547077,1761640251886,-500.0,0.00021917,2]
[392547078,1761640251898,-500.0,0.00021917,2]
[392547079,1761640251911,-517.71,0.00021917,2]
[392547080,1761640251924,-1739.18,0.00021917,2]
[392547081,1761640251936,-1259.32,0.00021917,2]
[392547082,1761640251948,-536.46,0.00021917,2]
[392547083,1761640251963,-500.0,0.00021917,2]
[392547084,1761640251974,-639.52,0.00021917,2]
[392547085,1761640251985,-596.96,0.00021917,2]
[392547086,1761640251997,-500.0,0.00021917,2]
[392547087,1761640252010,-423.74887955,0.00021917,2]
[392547088,1761640252023,-500.0,0.00021917,2]
[392547089,1761640252036,-1389.55,0.00021917,2]
[392547090,1761640252046,-1999.05,0.00021917,2]
[392547091,1761640252057,-500.0,0.00021917,2]
[392547092,1761640252067,-1796.42,0.00021917,2]
[392547093,1761640252078,-500.0,0.00021917,2]
[392547094,1761640252090,-500.0,0.00021917,2]
[392547095,1761640252101,-500.0,0.00021917,2]
[392547096,1761640252112,-500.0,0.00021917,2]
[392547097,1761640252123,-741.47,0.00021917,2]
[392547098,1761640252135,-519.99,0.00021917,2]
[392547099,1761640252145,-1195.67,0.00021917,2]
[392547100,1761640252156,-1178.08,0.00021917,2]
[392547101,1761640252167,-2427.11,0.00021917,2]
[392547102,1761640252178,-500.0,0.00021917,2]
[392547103,1761640252189,-2010.51,0.00021917,2]
[392547104,1761640252202,-500.0,0.00021917,2]
[392547105,1761640252213,-500.0,0.00021917,2]
[392547106,1761640252225,-1145.63,0.00021917,2]
[392547107,1761640252237,-500.0,0.00021917,2]
[392547108,1761640252248,-3732.65,0.00021917,2]
[392547109,1761640252260,-500.0,0.00021917,2]
[392547110,1761640252273,-500.0,0.00021917,2]
[392547111,1761640252286,-583.28,0.00021917,2]
[392547112,1761640252297,-500.0,0.00021917,2]
[392547113,1761640252309,-500.0,0.00021917,2]
[392547114,1761640252321,-500.0,0.00021917,2]
[392547115,1761640252334,-500.0,0.00021917,2]
[392547116,1761640252345,-567.58,0.00021917,2]
[392547117,1761640252357,-640.04,0.00021917,2]
[392547118,1761640252369,-500.0,0.00021917,2]
[392547119,1761640252381,-2225.91,0.00021917,2]
[392547120,1761640252392,-500.0,0.00021917,2]
[392547121,1761640252404,-529.29,0.00021917,2]
[392547122,1761640252416,-500.0,0.00021917,2]
[392547123,1761640252429,-1617.08,0.00021917,2]
[392547124,1761640252445,-978.05,0.00021917,2]
[392547125,1761640252455,-584.93,0.00021917,2]
[392547126,1761640252466,-500.0,0.00021917,2]
[392547127,1761640252477,-516.64,0.00021917,2]
[392547128,1761640252488,-500.0,0.00021917,2]
[392547129,1761640252499,-2624.84,0.00021917,2]
[392547130,1761640252511,-739.92,0.00021917,2]
[392547131,1761640252522,-500.0,0.00021917,2]
[392547132,1761640252533,-500.0,0.00021917,2]
[392547133,1761640252544,-1150.22,0.00021917,2]
[392547134,1761640252555,-1012.27,0.00021917,2]
[392547135,1761640252566,-516.35,0.00021917,2]
[392547136,1761640252579,-836.6,0.00021917,2]
[392547137,1761640252590,-504.91,0.00021917,2]
[392547138,1761640252600,-500.0,0.00021917,2]
[392547139,1761640252611,-500.0,0.00021917,2]
[392547140,1761640252622,-563.76,0.00021917,2]
[392547141,1761640252634,-998.13,0.00021917,2]
[392547142,1761640252645,-500.0,0.00021917,2]
[392547143,1761640252657,-500.0,0.00021917,2]
[392547144,1761640252668,-500.0,0.00021917,2]
[392547145,1761640252678,-871.06,0.00021917,2]
[392547146,1761640252689,-2917.82,0.00021917,2]
[392547147,1761640252700,-500.0,0.00021917,2]
[392547148,1761640252711,-2907.55,0.00021917,2]
[392547149,1761640252722,-500.0,0.00021917,2]
[392547150,1761640252732,-1658.67,0.00021917,2]
[392547151,1761640252743,-821.9,0.00021917,2]
[392547152,1761640252756,-500.0,0.00021917,2]
[392547153,1761640252767,-4703.01,0.00021917,2]
[392547154,1761640252779,-500.0,0.00021917,2]
[392547155,1761640252789,-1961.75,0.00021917,2]
[392547156,1761640252800,-18267.81,0.00021917,2]
[392547157,1761640252811,-500.0,0.00021917,2]
[392547158,1761640252822,-500.0,0.00021917,2]
[392547159,1761640252833,-500.0,0.00021917,2]
[392547160,1761640252844,-1110.04,0.00021917,2]
[392547161,1761640252855,-557.86786082,0.00021917,2]
[392547162,1761640252865,-1326.97,0.00021917,2]
[392547163,1761640252875,-500.0,0.00021917,2]
[392547164,1761640252886,-426.06250817,0.00021917,2]
[392547165,1761640252896,-553.27,0.00021917,2]
[392547166,1761640252907,-500.0,0.00021917,2]
[392547167,1761640252918,-2211.0,0.00021917,2]
[392547168,1761640252928,-500.0,0.00021917,2]
[392547169,1761640252938,-500.0,0.00021917,2]
[392547170,1761640252949,-922.62,0.00021917,2]
[392547171,1761640252959,-500.0,0.00021917,2]
[392547172,1761640252971,-500.0,0.00021917,2]
[392547173,1761640252982,-500.0,0.00021917,2]
[392547174,1761640252993,-500.0,0.00021917,2]
[392547175,1761640253004,-500.0,0.00021917,2]
[392547176,1761640253014,-500.0,0.00021917,2]
[392547177,1761640253024,-500.0,0.00021917,2]
[392547178,1761640253035,-1233.49,0.00021917,2]
[392547179,1761640253047,-1984.4,0.00021917,2]
[392547180,1761640253058,-500.0,0.00021917,2]
[392547181,1761640253069,-1454.22,0.00021917,2]
[392547182,1761640253080,-500.0,0.00021917,2]
[392547183,1761640253090,-1547.06,0.00021917,2]
[392547184,1761640253101,-563.61,0.00021917,2]
[392547185,1761640253112,-745.71,0.00021917,2]
[392547186,1761640253123,-500.0,0.00021917,2]
[392547187,1761640253133,-1106.83,0.00021917,2]
[392547188,1761640253144,-153.0,0.00021918,2]
[392547189,1761640253155,-153.0,0.00021918,2]
[392547190,1761640253165,-153.0,0.00021918,2]
[392547191,1761640253176,-153.0,0.00021918,2]
[392547192,1761640253186,-153.0,0.00021918,2]
[392547193,1761640253197,-153.0,0.00021918,2]
[392547194,1761640253207,-153.0,0.00021918,2]
[392547195,1761640253218,-153.0,0.00021918,2]
[392547196,1761640253228,-153.0,0.00021918,2]
[392547197,1761640253240,-153.0,0.00021918,2]
[392547198,1761640253250,-500.0,0.00021918,2]
[392547199,1761640253261,-500.0,0.00021918,2]
[392547200,1761640253272,-193.269,0.00021918,2]
[392547201,1761640253283,-500.0,0.00021973,2]
[392547202,1761640253293,-500.0,0.00021973,2]
[392547203,1761640253305,-500.0,0.00021973,2]
[392547204,1761640253315,-500.0,0.00021973,2]
[392547205,1761640253327,-500.0,0.00021973,2]
[392547206,1761640253338,-500.0,0.00021973,2]
[392547207,1761640253348,-500.0,0.00021973,2]
[392547208,1761640253359,-500.0,0.00021973,2]
[392547209,1761640253370,-500.0,0.00021973,2]
[392547210,1761640253380,-500.0,0.00021973,2]
[392547211,1761640253391,-500.0,0.00021973,2]
[392547212,1761640253402,-500.0,0.00021973,2]
[392547213,1761640253413,-2047.46,0.00022,2]
[392547214,1761640253424,-500.0,0.00022173,2]
[392547215,1761640253445,-500.0,0.00022173,2]
[392547216,1761640253456,-500.0,0.00022173,2]
[392547217,1761640253466,-500.0,0.00022173,2]
[392547218,1761640253476,-501.88482181,0.00022173,2]
[392547219,1761640253487,-500.0,0.00022173,2]
[392547220,1761640253497,-500.0,0.00022173,2]
[392547221,1761640253507,-500.0,0.00022173,2]
[392547222,1761640253518,-500.0,0.00022173,2]
[392547223,1761640253528,-170.223743,0.00022175,2]
[392547224,1761640253539,-526.47,0.00022191,2]
[392547225,1761640253549,-500.0,0.00022191,2]
[392547226,1761640253560,-500.0,0.00022191,2]
[392547227,1761640253570,-500.0,0.00022191,2]
[392547228,1761640253581,-524.99304039,0.00022191,2]
[392547229,1761640253595,-534.41433237,0.00022191,2]
[392547230,1761640253605,-500.0,0.00022191,2]
[392547231,1761640253615,-500.0,0.00022191,2]
[392547232,1761640253626,-500.0,0.00022191,2]
[392547233,1761640253636,-700.14,0.00022191,2]
[392547234,1761640253646,-500.0,0.00022191,2]
[392547235,1761640253656,-500.0,0.00022191,2]
[392547236,1761640253667,-500.0,0.00022191,2]
[392547237,1761640253677,-500.0,0.00022191,2]
[392547238,1761640253688,-500.0,0.00022191,2]
[392547239,1761640253698,-500.0,0.00022191,2]
[392547240,1761640253709,-650.49,0.00022191,2]
[392547241,1761640253719,-500.0,0.00022191,2]
[392547242,1761640253729,-821.3,0.00022191,2]
[392547243,1761640253740,-500.0,0.00022191,2]
[392547244,1761640253752,-500.0,0.00022191,2]
[392547245,1761640253762,-883.33,0.00022191,2]
[392547246,1761640253774,-559.22,0.00022191,2]
[392547247,1761640253784,-500.0,0.00022191,2]
[392547248,1761640253794,-500.0,0.00022191,2]
[392547249,1761640253804,-795.1,0.00022191,2]
[392547250,1761640253815,-500.0,0.00022191,2]
[392547251,1761640253825,-500.0,0.00022191,2]
[392547252,1761640253837,-500.0,0.00022191,2]
[392547253,1761640253848,-500.0,0.00022191,2]
[392547254,1761640253860,-500.0,0.00022191,2]
[392547255,1761640253871,-500.0,0.00022191,2]
[392547256,1761640253881,-500.0,0.00022191,2]
[392547257,1761640253892,-500.0,0.00022191,2]
[392547258,1761640253903,-315.05927017,0.00022191,2]
[392547259,1761640253913,-500.0,0.00022191,2]
[392547260,1761640253924,-500.0,0.00022191,2]
[392547261,1761640253934,-500.0,0.00022191,2]
[392547262,1761640253945,-500.0,0.00022191,2]
[392547263,1761640253956,-500.0,0.00022191,2]
[392547264,1761640253973,-601.53,0.00022191,2]
[392547265,1761640253984,-500.0,0.00022191,2]
[392547266,1761640253995,-500.0,0.00022191,2]
[392547267,1761640254006,-539.11,0.00022191,2]
[392547268,1761640254016,-500.0,0.00022191,2]
[392547269,1761640254027,-500.0,0.00022191,2]
[392547270,1761640254038,-500.0,0.00022191,2]
[392547271,1761640254048,-500.0,0.00022191,2]
[392547272,1761640254058,-530.82688448,0.00022191,2]
[392547273,1761640254068,-500.0,0.00022191,2]
[392547274,1761640254079,-1102.48,0.00022191,2]
[392547275,1761640254090,-533.85,0.00022191,2]
[392547276,1761640254101,-500.0,0.00022191,2]
[392547277,1761640254112,-500.0,0.00022191,2]
[392547278,1761640254122,-500.0,0.00022191,2]
[392547279,1761640254133,-666.47,0.00022191,2]
[392547280,1761640254143,-500.0,0.00022191,2]
[392547281,1761640254154,-500.0,0.00022191,2]
[392547282,1761640254164,-500.0,0.00022191,2]
[392547283,1761640254174,-500.0,0.00022191,2]
[392547284,1761640254184,-500.0,0.00022191,2]
[392547285,1761640254194,-500.0,0.00022191,2]
[392547286,1761640254204,-500.0,0.00022191,2]
[392547287,1761640254214,-500.0,0.00022191,2]
[392547288,1761640254225,-500.0,0.00022191,2]
[392547289,1761640254236,-500.0,0.00022191,2]
[392547290,1761640254247,-500.0,0.00022191,2]
[392547291,1761640254257,-500.0,0.00022191,2]
[392547292,1761640254268,-500.0,0.00022191,2]
[392547293,1761640254279,-500.0,0.00022191,2]
[392547294,1761640254290,-500.0,0.00022191,2]
[392547295,1761640254301,-500.0,0.00022191,2]
[392547296,1761640254312,-500.0,0.00022191,2]
[392547297,1761640254322,-500.0,0.00022191,2]
[392547298,1761640254333,-500.0,0.00022191,2]
[392547299,1761640254343,-500.0,0.00022191,2]
[392547300,1761640254354,-500.0,0.00022191,2]
[392547301,1761640254364,-500.0,0.00022191,2]
[392547302,1761640254375,-500.0,0.00022191,2]
[392547303,1761640254386,-500.0,0.00022191,2]
[392547304,1761640254396,-5260.13,0.00022191,2]
[392547305,1761640254406,-500.0,0.00022191,2]
[392547306,1761640254417,-533.68,0.00022191,2]
[392547307,1761640254427,-604.83232208,0.00022191,2]
[392547308,1761640254439,-441.61496891,0.00022191,2]
[392547309,1761640254449,-500.0,0.00022191,2]
[392547310,1761640254460,-632.82,0.00022191,2]
[392547311,1761640254470,-500.0,0.00022191,2]
[392547312,1761640254481,-500.0,0.00022191,2]
[392547313,1761640254491,-500.0,0.00022191,2]
[392547314,1761640254501,-902.27,0.00022191,2]
[392547315,1761640254510,-1098.98,0.00022191,2]
[392547316,1761640254519,-1099.04,0.00022191,2]
[392547317,1761640254885,-897.28,0.00022191,2]
[392547318,1761640254902,-500.0,0.00022191,2]
[392547319,1761640254922,-500.0,0.00022191,2]
[392547320,1761640254940,-589.45,0.00022191,2]
[392547321,1761640254949,-585.59,0.00022191,2]
[392547322,1761640254962,-529.22,0.00022191,2]
[392547323,1761640254971,-622.46,0.00022191,2]
[392547324,1761640254981,-319.29450248,0.00022191,2]
[392547325,1761640254991,-500.0,0.00022191,2]
[392547326,1761640255001,-500.0,0.00022191,2]
[392547327,1761640255011,-766.85,0.00022191,2]
[392547328,1761640255020,-500.0,0.00022191,2]
[392547329,1761640255030,-500.0,0.00022191,2]
[392547330,1761640255039,-500.0,0.00022191,2]
[392547331,1761640255049,-695.96,0.00022191,2]
[392547332,1761640255058,-350.29171978,0.00022191,2]
[392547333,1761640255067,-920.11,0.00022191,2]